[Event "Mitropa Cup Open 2024"]
[Site "Apolda"]
[Date "2024.02.21"]
[Round "7.5"]
[White "Vykouk, Jan"]
[Black "Plenca, Jadranko"]
[Result "1/2-1/2"]
[ECO "C54"]
[WhiteElo "2493"]
[BlackElo "2429"]
[Annotator "TA"]
[PlyCount "101"]
[EventDate "2024.02.15"]
[EventType "team-tourn"]
[EventCountry "GER"]
[SourceTitle "playchess.com"]
[Source "ChessBase"]
[SourceQuality "1"]
[WhiteTeam "Czech Republic"]
[BlackTeam "Croatia"]
[WhiteTeamCountry "CZE"]
[BlackTeamCountry "CRO"]
[TimeControl "40/5400+30:1800+30"]

{[%evp 14,101,11,9,5,3,10,5,14,2,12,0,0,0,0,0,0,-9,0,0,0,0,0,-7,32,-27,53,0,72,-25,67,78,108,83,115,98,102,96,89,87,60,0,0,0,0,-83,72,67,72,0,0,0,0,-10,115,86,63,16,14,16,44,44,54,34,24,22,25,25,26,0,0,0,0,0,0,0,0,0,0,0,0,0,0,0,0,0,8,0,0,0]} 1. e4 {[%emt 0:00:04]} e5 {[%emt 0:00:07]} 2. Nf3 {[%emt 0:00:04]} Nc6 {[%emt 0:00:04]} 3. Bc4 {[%emt 0:00:06]} Bc5 {[%emt 0:00:21]} 4. d3 {[%emt 0:00:20]} Nf6 {[%emt 0:00:21]} 5. O-O {[%emt 0:00:13]} O-O {[%emt 0:00:26]} 6. Re1 {[%emt 0:00:12]} h6 {[%emt 0:01:50]} 7. h3 {[%emt 0:00:26]} d6 {[%emt 0:00:57]} 8. c3 {[%emt 0:00:14]} a5 {[%emt 0:02:34]} 9. Nbd2 {[%emt 0:00:15]} Be6 {[%emt 0:00:54]} 10. Bb5 {[%emt 0:00:05]} Qb8 {[%emt 0:00:53]} 11. Nf1 {[%emt 0:00:12]} Qa7 {[%emt 0:00:11]} 12. Re2 {[%emt 0:00:08]} a4 {[%emt 0:03:29]} 13. Ng3 {[%emt 0:00:11]} Qa5 {[%emt 0:04:52]} 14. Bxc6 {[%emt 0:00:07]} bxc6 {[%emt 0:00:04]} 15. Bd2 {[%emt 0:00:10]} Qb5 {[%emt 0:08:08][%csl LRb2,LRd3]} 16. c4 {[%emt 0:00:19]} Qb6 {[%emt 0:01:32]} 17. Rc1 {[%emt 0:05:02]} Nd7 {[%emt 0:08:11]} 18. Bc3 {[%emt 0:04:53]} Rfb8 {[%emt 0:14:08]} 19. a3 {[%emt 0:08:00]} (19. d4 $14 exd4 20. Nxd4) 19... Rb7 {[%emt 0:09:01]} (19... f6 $11) 20. Rcc2 {[%emt 0:04:29]} ({White should try} 20. d4 $14 exd4 21. Nxd4) 20... Rab8 {[%emt 0:02:23]} (20... Re8 $11 {keeps the balance.}) 21. Kh2 {[%emt 0:02:42]} (21. d4 $16 exd4 22. Nxd4) 21... Qa7 {[%emt 0:02:09]} ({Black should play} 21... Bd4 $11) 22. Nf5 $14 {[%emt 0:11:24]} Bxf5 {[%emt 0:08:44]} 23. exf5 {[%emt 0:00:05]} Bd4 {[%emt 0:07:52]} 24. Bxd4 {[%emt 0:02:16]} exd4 {[%emt 0:03:00]} 25. Re7 {[%emt 0:01:23]} Nf6 {[%emt 0:02:10]} 26. Qe2 {[%emt 0:08:23][%cal Oc4c5] White is more active.} Qc5 {[%emt 0:02:03]} 27. Nh4 {[%emt 0:00:57]} (27. g4 $14) 27... d5 $36 {[%emt 0:03:55][%mdl 2048] aiming for ...Qd6+. Black has some pressure.} 28. Qe5 {[%emt 0:16:20] Nf3 would now be deadly.} Qd6 $1 {[%emt 0:03:01]} 29. Nf3 {[%emt 0:07:13] [#]} (29. Qxd6 $11 {was the only way to keep the balance.} cxd6 30. Rxb7 Rxb7 31. c5 dxc5 32. Rxc5) 29... Rxb2 $2 {[%emt 0:02:46]} (29... c5 $1 $17 30. Qxd6 cxd6 31. Rxb7 Rxb7 32. cxd5 Nxd5) 30. Rxb2 $16 {[%emt 0:00:07]} Rxb2 {[%emt 0:00:05] [#]} 31. Rxc7 {[%emt 0:00:16]} (31. c5 $1 $16 {[%cal Rc5d6]} Qxe5+ (31... Qxc5 32. Qxc7 Qc1 33. Rxf7 $14) 32. Nxe5) 31... Qxe5+ $11 {[%emt 0:05:54]} (31... Qxa3 32. Rc8+ Kh7 33. Qc7 $18) 32. Nxe5 {[%emt 0:00:06] And now c5 would win.} dxc4 {[%emt 0:03:43]} (32... Rxf2 $2 {is the wrong capture.} 33. c5 $18) 33. Nxc4 $17 {[%emt 0:07:57][%mdl 4096] Endgame. KRN-KRN} Rb3 {[%emt 0:00:37]} (33... Rxf2 $11 {remains equal.} 34. Rxc6 Nd5 (34... Rxf5 35. Ra6 $11)) 34. Rc8+ {[%emt 0:01:13]} Kh7 {[%emt 0:00:03]} 35. Rxc6 {[%emt 0:00:06]} (35. Nd6 $14 {might be stronger.}) 35... Rxd3 $11 {[%emt 0:00:06] ...Rc3 is the strong threat.} 36. Ra6 {[%emt 0:01:11][%cal Bc6a6,Ba6a4,Ba4d4][%mdl 32]} Rc3 {[%emt 0:00:14][%cal Bd3c3,Bc3c2,Bc2f2,Bf2f5,Bf5a5][%mdl 32]} 37. Rxa4 {[%emt 0:00:24]} Rc2 {[%emt 0:00:03]} 38. Ne5 {[%emt 0:02:42]} Rxf2 {[%emt 0:00:52]} 39. Rxd4 {[%emt 0:00:07]} Rxf5 {[%emt 0:00:04]} 40. Nxf7 {[%emt 0:00:14]} Ra5 {[%emt 0:00:17]} 41. a4 {[%emt 0:31:02]} Nd5 $1 {[%emt 0:04:09] The position is equal.} 42. Nd8 {[%emt 0:00:00]} Nb6 {[%emt 0:01:28]} 43. Ne6 {[%emt 0:00:00]} Rxa4 {[%emt 0:00:36]} 44. Rd8 {[%emt 0:00:00] Threatens to win with Nf8+.} Ra8 {[%emt 0:00:52]} 45. Rd6 {[%emt 0:00:00]} Rb8 {[%emt 0:00:27]} 46. h4 {[%emt 0:00:00]} Kg8 {[%emt 0:02:21]} 47. h5 {[%emt 0:00:00]} Rb7 {[%emt 0:03:27]} 48. Rc6 {[%emt 0:00:00]} Kh7 {[%emt 0:04:24]} 49. g4 {[%emt 0:00:00]} (49. Nc5 $5 Rb8 $8 50. Rc7 $14) 49... Nd7 {[%emt 0:01:46]} 50. Rc8 {[%emt 0:00:00]} Nf6 {[%emt 0:02:02]} 51. Nf8+ {[%emt 0:00:29] Weighted Error Value: White=0.20 (precise) /Black=0.24 (precise) .  Mistake:       	White=7     	Black=5      Inaccurate:     	White=1     	Black=4      OK:         	White=11    	Black=19     Best:        	---       	Black=3      Strong:       	---       	Black=2} 1/2-1/2

[Event "Mitropa Cup Open 2024"]
[Site "Apolda"]
[Date "2024.02.21"]
[Round "7.6"]
[White "Ivekovic, Bozidar"]
[Black "Stalmach, Richard"]
[Result "1-0"]
[ECO "B43"]
[WhiteElo "2399"]
[BlackElo "2433"]
[Annotator "RC"]
[PlyCount "89"]
[EventDate "2024.02.15"]
[EventType "team-tourn"]
[EventCountry "GER"]
[SourceTitle "playchess.com"]
[Source "ChessBase"]
[SourceQuality "1"]
[WhiteTeam "Croatia"]
[BlackTeam "Czech Republic"]
[WhiteTeamCountry "CRO"]
[BlackTeamCountry "CZE"]
[TimeControl "40/5400+30:1800+30"]

1. e4 {[%emt 0:00:04]} c5 {[%emt 0:00:05]} 2. Nf3 {[%emt 0:00:04]} e6 {[%emt 0:00:05]} 3. d4 {[%emt 0:00:03]} cxd4 {[%emt 0:00:05]} 4. Nxd4 {[%emt 0:00:02]} a6 {[%emt 0:00:11]} 5. Nc3 {[%emt 0:00:04]} b5 {[%emt 0:00:06]} 6. Bd3 {[%emt 0:00:04]} Bb7 {[%emt 0:00:05]} 7. O-O {[%emt 0:02:58]} Nc6 {[%emt 0:00:09]} 8. Nxc6 {[%emt 0:07:07]} Bxc6 {[%emt 0:00:08]} 9. Qe2 {[%emt 0:00:08]} Nf6 {[%emt 0:00:29]} 10. e5 {[%emt 0:03:24]} b4 {[%emt 0:00:17]} 11. Ne4 {[%emt 0:07:42]} Nxe4 {[%emt 0:00:06]} 12. Bxe4 {[%emt 0:00:07]} Qb6 {[%emt 0:00:04]} 13. a3 {[%emt 0:05:10]} Qb5 {[%emt 0:07:10]} 14. Qf3 {[%emt 0:08:27]} Rc8 {[%emt 0:13:10]} 15. axb4 {[%emt 0:05:45]} Qxe5 {[%emt 0:01:17]} 16. Bxc6 {[%emt 0:00:18]} Rxc6 {[%emt 0:00:06]} 17. Ra5 {[%emt 0:04:41]} Qf6 {[%emt 0:16:46]} 18. Qxf6 {[%emt 0:06:04]} gxf6 {[%emt 0:00:04]} 19. c3 {[%emt 0:00:02]} d5 {[%emt 0:19:55]} 20. Be3 {[%emt 0:01:27]} Kd7 {[%emt 0:00:44]} 21. Rfa1 {[%emt 0:00:17]} Bd6 {[%emt 0:00:04]} 22. Rxa6 {[%emt 0:00:17]} Rxa6 {[%emt 0:00:04]} 23. Rxa6 {[%emt 0:00:05]} e5 {[%emt 0:00:06]} 24. Kf1 {[%emt 0:08:34]} Rc8 {[%emt 0:00:11]} 25. Ra5 {[%emt 0:03:32]} Ke6 {[%emt 0:07:50]} 26. Bc5 {[%emt 0:00:39]} Bxc5 {[%emt 0:00:14]} 27. Rxc5 {[%emt 0:00:53]} Ra8 {[%emt 0:13:44]} 28. Ra5 {[%emt 0:01:13]} Rb8 {[%emt 0:00:20]} 29. Ke2 {[%emt 0:04:08]} Rb6 {[%emt 0:00:03]} 30. g4 {[%emt 0:02:13]} Rd6 {[%emt 0:06:59]} 31. b5 {[%emt 0:08:27]} Rd8 {[%emt 0:00:01]} 32. Ra6+ {[%emt 0:00:13]} Ke7 {[%emt 0:00:04]} 33. b3 {[%emt 0:00:19]} d4 {[%emt 0:02:39]} 34. c4 {[%emt 0:01:16]} h5 {[%emt 0:00:35]} 35. h3 {[%emt 0:00:36]} hxg4 {[%emt 0:00:35]} 36. hxg4 {[%emt 0:00:00]} e4 {[%emt 0:02:09]} 37. c5 {[%emt 0:04:12]} Rd5 {[%emt 0:00:27]} 38. Ra7+ {[%emt 0:03:12]} Ke6 {[%emt 0:02:03]} 39. Rc7 {[%emt 0:00:14]} d3+ {[%emt 0:00:06]} 40. Kd2 {[%emt 0:00:03]} Rd4 {[%emt 0:10:41]} 41. b6 {[%emt 0:31:12]} Rb4 {[%emt 0:00:48]} 42. b7 {[%emt 0:00:00]} Kd5 {[%emt 0:04:14]} 43. c6 {[%emt 0:00:00]} Rxb3 {[%emt 0:00:05]} 44. Rc8 {[%emt 0:00:00]} Rb2+ {[%emt 0:00:03]} 45. Kc3 {[%emt 0:00:00]} 1-0

[Event "Mitropa Cup Open 2024"]
[Site "Apolda"]
[Date "2024.02.21"]
[Round "7.7"]
[White "Gnojek, Petr"]
[Black "Tomulic, Teo"]
[Result "1/2-1/2"]
[ECO "D63"]
[WhiteElo "2428"]
[BlackElo "2386"]
[Annotator "TA"]
[PlyCount "129"]
[EventDate "2024.02.15"]
[EventType "team-tourn"]
[EventCountry "GER"]
[SourceTitle "playchess.com"]
[Source "ChessBase"]
[SourceQuality "1"]
[WhiteTeam "Czech Republic"]
[BlackTeam "Croatia"]
[WhiteTeamCountry "CZE"]
[BlackTeamCountry "CRO"]
[TimeControl "40/5400+30:1800+30"]

{[%evp 50,129,-26,-62,-49,-118,-22,-25,-36,-35,-36,-75,-60,-135,-28,-90,-1,-1,0,0,0,-4,0,-8,0,0,0,0,0,0,15,8,8,8,8,8,88,0,0,0,0,0,0,0,0,0,0,0,0,0,0,0,0,0,0,0,0,0,0,0,0,0,0,0,6,0,0,0,0,35,189,0,0,0,0,0,0,0,0,0,0,0]} 1. d4 {[%emt 0:00:04]} Nf6 {[%emt 0:00:04]} 2. c4 {[%emt 0:00:06]} e6 {[%emt 0:00:03]} 3. Nf3 {[%emt 0:00:05]} d5 {[%emt 0:00:04]} 4. Nc3 {[%emt 0:00:05]} c6 {[%emt 0:00:21]} 5. Bg5 {[%emt 0:00:14]} Nbd7 {[%emt 0:00:05]} 6. e3 {[%emt 0:00:29]} h6 {[%emt 0:00:48]} 7. Bh4 {[%emt 0:00:22]} Be7 {[%emt 0:00:07]} 8. Rc1 {[%emt 0:02:36]} O-O {[%emt 0:00:36]} 9. Bd3 {[%emt 0:04:56]} dxc4 {[%emt 0:07:20]} 10. Bxc4 {[%emt 0:00:04]} c5 {[%emt 0:01:05]} 11. O-O {[%emt 0:03:44]} cxd4 {[%emt 0:02:16] D63: Queen's Gambit Declined: Classical: 7 Rc1.} 12. Qxd4 $146 {[%emt 0:00:13]} ({Predecessor:} 12. Nxd4 Nb6 13. Bb3 e5 14. Nf3 e4 15. Nd4 Re8 16. h3 Bd7 17. Qe2 Bd6 18. Ndb5 Bxb5 19. Nxb5 Be5 20. Bg3 Bxg3 21. fxg3 {0-1 Laurusas,T (2573)-Mitusov,S (2415) Riga Tech op 11th 2022 (4)}) 12... Nb6 {[%emt 0:00:48]} 13. Be2 {[%emt 0:04:02]} Qxd4 {[%emt 0:12:36]} 14. Nxd4 {[%emt 0:00:07]} Bd7 {[%emt 0:01:06]} 15. Rfd1 {[%emt 0:02:19]} Rac8 {[%emt 0:08:23]} 16. Bf3 {[%emt 0:16:58]} g5 {[%emt 0:01:02]} 17. Bg3 {[%emt 0:00:10]} Nfd5 {[%emt 0:01:03]} 18. Nf5 {[%emt 0:15:11]} exf5 {[%emt 0:02:32]} 19. Bxd5 {[%emt 0:04:16]} Bc6 {[%emt 0:06:59]} 20. Bxc6 {[%emt 0:00:05]} Rxc6 {[%emt 0:06:29]} 21. Nb5 {[%emt 0:05:39]} Rxc1 {[%emt 0:00:30]} 22. Rxc1 {[%emt 0:00:06]} Bf6 {[%emt 0:00:34]} 23. h4 {[%emt 0:09:59]} Rd8 {[%emt 0:02:47]} 24. hxg5 {[%emt 0:00:07]} hxg5 {[%emt 0:00:05]} 25. b3 {[%emt 0:04:55]} Nd5 {[%emt 0:07:21]} 26. e4 {[%emt 0:14:18]} (26. Nxa7 f4 (26... Nc3 $2 27. Kf1 $19) 27. exf4 gxf4 28. Bxf4 (28. Bh2 Nc3 $17) 28... Nxf4 $19) 26... fxe4 {[%emt 0:01:15]} 27. Re1 {[%emt 0:00:03]} (27. Nd6 $15) 27... Bg7 {[%emt 0:14:34]} ({Black should try} 27... Be7 $1 $17 {...f5 is the strong threat.} 28. Be5 (28. Rxe4 f5 $11) 28... e3 29. fxe3 a6) 28. Nd6 $11 {[%emt 0:01:18]} Nc3 {[%emt 0:00:06]} 29. a4 {[%emt 0:03:27]} b6 {[%emt 0:01:29]} 30. Kh2 {[%emt 0:01:59]} Rd7 {[%emt 0:02:33]} 31. Kh3 {[%emt 0:01:01] [#]} (31. Nxe4 Nxe4 32. Rxe4 f5 $17) (31. Kg1 $1 $15) 31... Kh7 {[%emt 0:01:46]} (31... Bf8 $1 $17 {[%cal Rf8d6]} 32. Nf5 (32. Nxe4 $2 {loses.} Nxe4 33. Rxe4 f5 $19) 32... Rd3) 32. Nf5 {[%emt 0:01:42]} (32. Nxe4 $11 Kg6 33. Nxc3 Bxc3 34. Re8) 32... Bf6 {[%emt 0:07:46]} (32... Bf8 $17 33. Be5 Rd3+ 34. Kg4 Kg6 35. Bxc3 Rxc3 36. Rxe4 a5 (36... Rxb3 37. f4 $11)) 33. Kg4 $11 {[%emt 0:00:42]} Rd3 {[%emt 0:01:37]} 34. Rh1+ {[%emt 0:02:15]} Kg8 {[%emt 0:00:10]} 35. Re1 {[%emt 0:00:26]} a6 {[%emt 0:02:11]} 36. Nd6 {[%emt 0:00:28]} b5 {[%emt 0:05:51]} 37. axb5 {[%emt 0:00:09]} axb5 {[%emt 0:04:38]} 38. Kf5 {[%emt 0:02:19]} Be7 {[%emt 0:00:00]} 39. Nxe4 {[%emt 0:00:30]} Rd5+ {[%emt 0:00:00]} 40. Be5 {[%emt 0:00:04]} Nxe4 {[%emt 0:00:48]} 41. Kxe4 {[%emt 0:03:01]} Rd2 {[%emt 0:00:23]} 42. Bd4 {[%emt 0:02:28]} Kh7 {[%emt 0:02:09]} (42... g4 $11) 43. Kf5 {[%emt 0:07:02]} (43. Rc1 $16 {aiming for Rc7.} Bd6 44. g4) 43... Rxd4 $11 {[%emt 0:00:20]} 44. Rxe7 {[%emt 0:00:05]} Rf4+ {[%emt 0:10:07]} 45. Kxg5 {[%emt 0:00:12]} Rxf2 {[%emt 0:00:03]} 46. g4 {[%emt 0:00:05]} Kg7 {[%emt 0:03:37]} 47. Rb7 {[%emt 0:00:07]} Rf1 {[%emt 0:02:46]} 48. b4 {[%emt 0:05:26]} Rf3 {[%emt 0:00:04]} 49. Rxb5 {[%emt 0:00:25]} f6+ {[%emt 0:00:10]} 50. Kh4 {[%emt 0:00:03]} Kg6 {[%emt 0:00:22]} 51. Rb8 {[%emt 0:01:42]} Rb3 {[%emt 0:01:40]} 52. Rb5 {[%emt 0:02:18]} Kf7 {[%emt 0:01:00]} 53. Rb7+ {[%emt 0:01:28]} Kg6 {[%emt 0:00:12]} 54. Rb8 {[%emt 0:00:07]} Kf7 {[%emt 0:04:20]} 55. b5 {[%emt 0:01:16]} Kg6 {[%emt 0:01:56]} 56. b6 {[%emt 0:00:22]} Kg7 {[%emt 0:01:19]} 57. g5 {[%emt 0:03:22]} Rb4+ {[%emt 0:04:32]} 58. Kh5 {[%emt 0:00:31]} fxg5 {[%emt 0:01:01]} 59. Kxg5 {[%emt 0:00:05]} Kf7 $2 {[%emt 0:00:12] [#]} (59... Rb5+ $1 $14 60. Kf4 Kg6) 60. Kf5 $2 {[%emt 0:00:44]} ({Only move:} 60. b7 $1 $18 {Rh8 would kill now.} Kg7 61. Kf5) 60... Ke7 $11 {[%emt 0:00:07]} 61. Ke5 {[%emt 0:00:05]} Rb5+ {[%emt 0:00:44]} 62. Kd4 {[%emt 0:00:10]} Kd7 {[%emt 0:00:04]} 63. Kc4 {[%emt 0:00:10]} Rh5 {[%emt 0:00:10]} 64. Rg8 {[%emt 0:01:45]} Kc6 {[%emt 0:00:11]} 65. Rg6+ {[%emt 0:00:04]} 1/2-1/2

[Event "Mitropa Cup Open 2024"]
[Site "Apolda"]
[Date "2024.02.21"]
[Round "7.8"]
[White "Novosel, Lovro"]
[Black "Nemec, Jachym"]
[Result "0-1"]
[ECO "B15"]
[WhiteElo "2373"]
[BlackElo "2393"]
[Annotator "RC"]
[PlyCount "78"]
[EventDate "2024.02.15"]
[EventType "team-tourn"]
[EventCountry "GER"]
[SourceTitle "playchess.com"]
[Source "ChessBase"]
[SourceQuality "1"]
[WhiteTeam "Croatia"]
[BlackTeam "Czech Republic"]
[WhiteTeamCountry "CRO"]
[BlackTeamCountry "CZE"]
[TimeControl "40/5400+30:1800+30"]

1. e4 {[%emt 0:00:07]} c6 {[%emt 0:01:50]} 2. d4 {[%emt 0:00:32]} d5 {[%emt 0:00:05]} 3. Nc3 {[%emt 0:00:16]} dxe4 {[%emt 0:00:06]} 4. Nxe4 {[%emt 0:00:06]} Nf6 {[%emt 0:00:23]} 5. Nxf6+ {[%emt 0:01:15]} exf6 {[%emt 0:00:09]} 6. c3 {[%emt 0:02:17]} Bd6 {[%emt 0:00:08]} 7. Bd3 {[%emt 0:00:53]} O-O {[%emt 0:00:11]} 8. Ne2 {[%emt 0:00:07]} Re8 {[%emt 0:00:39]} 9. Qc2 {[%emt 0:00:57]} h5 {[%emt 0:00:10]} 10. Bd2 {[%emt 0:07:06]} Nd7 {[%emt 0:01:30]} 11. O-O-O {[%emt 0:02:04]} Nf8 {[%emt 0:00:31]} 12. Ng3 {[%emt 0:04:55]} Be6 {[%emt 0:04:13]} 13. Kb1 {[%emt 0:02:07]} Rc8 {[%emt 0:03:42]} 14. Ne4 {[%emt 0:07:51]} b5 {[%emt 0:03:57]} 15. h3 {[%emt 0:02:03]} Bd5 {[%emt 0:08:46]} 16. Rhe1 {[%emt 0:14:18]} Ne6 {[%emt 0:03:56]} 17. Be3 {[%emt 0:07:56]} Bf8 {[%emt 0:09:02]} 18. f4 {[%emt 0:09:08]} Qa5 {[%emt 0:15:14]} 19. a3 {[%emt 0:01:45]} Qc7 {[%emt 0:15:21]} 20. g3 {[%emt 0:02:08]} f5 {[%emt 0:02:23]} 21. Nc5 {[%emt 0:03:47]} g6 {[%emt 0:00:48]} 22. Qf2 {[%emt 0:04:30]} Nxc5 {[%emt 0:04:37]} 23. dxc5 {[%emt 0:00:10]} Bg7 {[%emt 0:00:50]} 24. Bd4 {[%emt 0:08:21]} Bb3 {[%emt 0:05:53]} 25. Bxg7 {[%emt 0:01:34]} Kxg7 {[%emt 0:00:56]} 26. Bc2 {[%emt 0:01:36]} Bd5 {[%emt 0:00:51]} 27. Re3 {[%emt 0:00:35]} a5 {[%emt 0:02:15]} 28. b4 {[%emt 0:01:00]} axb4 {[%emt 0:04:16]} 29. cxb4 {[%emt 0:00:09]} Rcd8 {[%emt 0:01:29]} 30. Rde1 {[%emt 0:06:27]} Rxe3 {[%emt 0:00:21]} 31. Qxe3 {[%emt 0:00:10]} Be6 {[%emt 0:01:45]} 32. h4 {[%emt 0:00:18]} Kh7 {[%emt 0:00:50]} 33. Kb2 {[%emt 0:04:19]} Rd7 {[%emt 0:00:17]} 34. Kc3 {[%emt 0:03:14]} Qd8 {[%emt 0:00:46]} 35. Qe5 {[%emt 0:02:30]} Bc4 {[%emt 0:02:54]} 36. Re3 {[%emt 0:01:24]} Rd2 {[%emt 0:04:31]} 37. a4 {[%emt 0:00:19]} bxa4 {[%emt 0:01:17]} 38. Bxa4 {[%emt 0:00:12]} Be6 {[%emt 0:00:26]} 39. Re2 {[%emt 0:00:56]} Qd3# {[%emt 0:02:42]} 0-1

[Event "Mitropa Cup Open 2024"]
[Site "Apolda"]
[Date "2024.02.21"]
[Round "7.9"]
[White "Moroni, Luca Jr"]
[Black "Sahidi, Samir"]
[Result "1-0"]
[ECO "D02"]
[WhiteElo "2601"]
[BlackElo "2478"]
[Annotator "TA"]
[PlyCount "99"]
[EventDate "2024.02.15"]
[EventType "team-tourn"]
[EventCountry "GER"]
[SourceTitle "playchess.com"]
[Source "ChessBase"]
[SourceQuality "1"]
[WhiteTeam "Italy"]
[BlackTeam "Slovakia"]
[WhiteTeamCountry "ITA"]
[BlackTeamCountry "SVK"]
[TimeControl "40/5400+30:1800+30"]

{[%evp 21,99,15,10,0,0,0,0,0,0,9,6,2,0,0,10,0,40,12,54,38,42,30,49,12,49,49,49,56,49,49,62,1,30,29,40,40,41,35,63,66,76,64,69,52,72,81,89,95,83,88,178,161,184,165,157,144,118,85,139,147,539,544,517,541,581,573,649,592,831,700,645,632,2029,1968,2131,2036,29985,29986,29991,29992]} 1. d4 {[%emt 0:00:05]} Nf6 {[%emt 0:00:07]} 2. Nf3 {[%emt 0:00:48]} e6 {[%emt 0:00:46]} 3. Bf4 {[%emt 0:00:37]} b6 {[%emt 0:01:39]} 4. e3 {[%emt 0:00:44]} Bb7 {[%emt 0:00:39]} 5. h3 {[%emt 0:01:00]} Be7 {[%emt 0:01:53]} 6. Nbd2 {[%emt 0:00:31]} O-O {[%emt 0:01:14]} 7. Bd3 {[%emt 0:01:57]} d5 {[%emt 0:00:48]} 8. O-O {[%emt 0:02:22]} c5 {[%emt 0:00:55]} 9. c3 {[%emt 0:00:48]} Nc6 {[%emt 0:03:36]} 10. Qe2 {[%emt 0:08:02]} Bd6 {[%emt 0:03:12]} 11. Bxd6 {[%emt 0:07:03]} Qxd6 {[%emt 0:00:53]} 12. dxc5 {[%emt 0:00:38]} bxc5 {[%emt 0:01:47]} 13. e4 {[%emt 0:04:20] [#] Strongly threatening e5.} Ne5 {[%emt 0:03:20]} 14. Nxe5 {[%emt 0:09:01] The position is equal.} Qxe5 {[%emt 0:00:34]} 15. f4 {[%emt 0:12:20]} Qc7 {[%emt 0:00:17]} 16. e5 {[%emt 0:00:58]} Nd7 {[%emt 0:00:19]} 17. Nf3 {[%emt 0:00:59][%cal Od3h7]} Rfe8 {[%emt 0:22:49]} 18. Rae1 {[%emt 0:00:32]} Nf8 {[%emt 0:05:20]} 19. h4 {[%emt 0:06:24]} Qb6 {[%emt 0:13:23] [#] And now ...c4+ would win.} 20. Rf2 {[%emt 0:05:03]} a5 {[%emt 0:00:33][%cal Ba7a5,Ba5a4][%mdl 32]} 21. Bb1 {[%emt 0:00:32]} d4 {[%emt 0:07:28]} 22. c4 {[%emt 0:03:00]} Bxf3 {[%emt 0:03:41]} 23. Qxf3 {[%emt 0:05:49]} Qb4 {[%emt 0:05:00][%csl LRc4,LRe1] Black is weak on the light squares} 24. Rc1 {[%emt 0:00:13]} a4 {[%emt 0:01:02]} 25. Be4 {[%emt 0:05:45]} Ra7 {[%emt 0:00:34]} 26. a3 {[%emt 0:03:09]} (26. g4 $14) 26... Qb8 {[%emt 0:00:48]} 27. h5 {[%emt 0:01:23]} Qc7 {[%emt 0:11:02]} 28. Bc6 {[%emt 0:02:48]} Rd8 {[%emt 0:00:22]} 29. Bb5 {[%emt 0:01:37]} g6 {[%emt 0:07:34]} 30. Re1 {[%emt 0:03:45]} Kg7 {[%emt 0:01:27]} 31. Qd3 {[%emt 0:01:57]} Qe7 {[%emt 0:02:19]} 32. g3 {[%emt 0:00:06]} gxh5 {[%emt 0:00:37]} 33. Rh2 {[%emt 0:00:41]} h4 {[%emt 0:00:29]} 34. Rxh4 {[%emt 0:01:02] White has more active pieces.} Ng6 {[%emt 0:00:21][%cal Bf8g6,Bg6e7,Be7d5,Bd5e3][%mdl 32]} 35. Rh5 {[%emt 0:00:12]} h6 {[%emt 0:00:37]} (35... Kg8 $16) 36. Kf2 {[%emt 0:01:22][%cal Bg1f2,Bf2e1,Be1d1,Bd1e2][%mdl 32]} Rb7 {[%emt 0:00:27]} 37. Reh1 {[%emt 0:01:11]} (37. Bxa4 Rxb2+ 38. Kg1 Qa7 $17) 37... Rh8 {[%emt 0:00:04]} 38. Ke1 {[%emt 0:01:05]} (38. Bxa4 $2 Rxb2+ 39. Bc2 Qa7 $19) 38... Qc7 {[%emt 0:00:31]} 39. R1h2 {[%emt 0:01:59][%cal Oe1d1]} (39. Bxa4 $2 Qa5+ (39... Rxb2 $2 40. Kf1 $19) 40. b4 Qxa4 $19) 39... Ne7 {[%emt 0:00:36]} 40. g4 {[%emt 0:00:47][%cal Oe1d1,Bg3g4,Bg4f5,Bf5f6][%mdl 32]} (40. Bxa4 $2 {too greedy.} Qa5+ 41. b4 Qxa4 $19) 40... Qa5+ $2 {[%emt 0:00:53][%mdl 8192] Loses the game.} (40... Nd5 $16) 41. Kd1 $18 {[%emt 0:36:46]} Rxb5 {[%emt 0:09:42]} 42. cxb5 {[%emt 0:00:00] Threatens to win with f5.} Nd5 {[%emt 0:00:10]} 43. f5 {[%emt 0:00:00] Hoping for f6+.} Ne3+ {[%emt 0:01:45]} 44. Ke2 {[%emt 0:00:00]} exf5 {[%emt 0:02:37]} 45. gxf5 {[%emt 0:00:00]} Qa8 {[%emt 0:00:28]} 46. R5h3 {[%emt 0:00:00]} h5 {[%emt 0:17:36]} 47. f6+ {[%emt 0:00:00]} (47. Rxh5 $2 {perishes.} Rxh5 48. Rf2 Qd5 49. f6+ Kf8 $19) 47... Kf8 {[%emt 0:00:26]} 48. Rxe3 {[%emt 0:00:00]} (48. Rxh5 Rxh5 49. Rf2 Qd5 $19 (49... Rxe5 $2 50. Rf3 $19)) 48... dxe3 {[%emt 0:00:20]} 49. e6 {[%emt 0:00:00]} Qb8 {[%emt 0:01:28]} 50. Rg2 {[%emt 0:00:00] Weighted Error Value: White=0.08 (flawless) /Black=0.41.  Loses game:     	---       	Black=1      Mistake:       	White=1     	Black=1      Inaccurate:     	White=1     	Black=6      OK:         	White=14    	Black=10     Best:        	White=4     	Black=2} 1-0